bitfinex/quotes_BTCUSD_20250224
["timestamp","ask_amount","ask_price","bid_price","bid_amount"]
[1740432672696,5e-08,94400.0,94399.0,0.42554469]
[1740432673590,5e-08,94400.0,94399.0,0.11664569]
[1740432674001,5e-08,94400.0,94399.0,0.27554469]
[1740432674428,5e-08,94400.0,94399.0,0.26854469]
[1740432674761,5e-08,94400.0,94399.0,0.27554469]
[1740432674965,5e-08,94400.0,94399.0,0.26854469]
[1740432675388,5e-08,94400.0,94399.0,0.27554469]
[1740432679022,0.00084865,94400.0,94399.0,0.27554469]
[1740432679703,0.00084865,94400.0,94399.0,0.34117802]
[1740432679925,0.00084865,94400.0,94399.0,0.49117802]
[1740432680312,0.00084865,94400.0,94399.0,0.53907802]
[1740432680521,6.5e-07,94400.0,94399.0,0.53907802]
[1740432681064,6.5e-07,94400.0,94399.0,0.55361887]
[1740432681462,6.5e-07,94400.0,94399.0,0.53961887]
[1740432681662,6.5e-07,94400.0,94399.0,0.57961887]
[1740432681875,6.5e-07,94400.0,94399.0,0.59361887]
[1740432682590,6.5e-07,94400.0,94399.0,0.58661887]
[1740432682934,6.5e-07,94400.0,94399.0,0.57961887]
[1740432683549,6.5e-07,94409.0,94408.0,0.46822485]
[1740432683759,6.5e-07,94416.0,94415.0,0.40141385]
[1740432683967,6.5e-07,94416.0,94415.0,0.50405954]
[1740432684369,6.5e-07,94416.0,94415.0,0.54405954]
[1740432684568,6.5e-07,94416.0,94415.0,0.59115954]
[1740432684972,6.5e-07,94416.0,94415.0,0.59815954]
[1740432685174,6.5e-07,94416.0,94415.0,0.60515954]
[1740432685381,0.0008489,94425.0,94422.0,0.04]
[1740432685623,0.00097829,94425.0,94424.0,0.42604354]
[1740432685989,0.00097829,94425.0,94424.0,0.45054475]
[1740432686600,0.00097829,94425.0,94424.0,0.2771469]
[1740432686796,0.00097829,94425.0,94424.0,0.10264569]
[1740432687003,0.0168,94446.0,94424.0,0.10264569]
[1740432687004,0.158832,94439.0,94438.0,0.000592]
[1740432687450,0.16265373,94439.0,94438.0,0.000592]
[1740432688517,0.16265373,94439.0,94438.0,0.014592]
[1740432688888,0.16265373,94439.0,94438.0,0.014]
[1740432689542,0.00382173,94439.0,94438.0,0.014592]
[1740432689943,0.16265373,94439.0,94438.0,0.014592]
[1740432690985,0.00382173,94439.0,94438.0,0.014592]
[1740432691721,0.158831,94440.0,94438.0,0.014592]
[1740432691926,0.00382259,94439.0,94438.0,0.014592]
[1740432692126,0.16265459,94439.0,94438.0,0.014]
[1740432692476,0.16265459,94439.0,94438.0,0.007]
[1740432694635,0.15,94438.0,94416.0,0.000592]
[1740432694839,0.211828,94417.0,94411.0,0.000592]
[1740432695041,0.158878,94412.0,94411.0,0.000592]
[1740432695496,0.00380272,94412.0,94411.0,0.159471]
[1740432695664,0.158878,94412.0,94411.0,0.000592]
[1740432695890,0.15,94436.0,94394.0,0.211877]
[1740432696081,0.211843,94410.0,94407.0,0.000592]
[1740432696284,0.158884,94408.0,94407.0,0.000592]
[1740432696485,0.0043454,94409.0,94408.0,0.000592]
[1740432696672,0.21179,94433.0,94407.0,0.000592]
[1740432696869,0.158873,94415.0,94407.0,0.000592]
[1740432697090,0.00380209,94414.0,94407.0,0.000592]
[1740432697291,0.02436902,94414.0,94407.0,0.000592]
[1740432697534,0.00434535,94413.0,94407.0,0.000592]
[1740432697758,0.211821,94420.0,94407.0,0.000592]
[1740432697968,0.00434519,94412.0,94408.0,0.158883]
[1740432698167,0.158871,94417.0,94411.0,0.007]
[1740432698355,0.02455291,94414.0,94411.0,0.007]
[1740432698550,0.211804,94427.0,94411.0,0.007]
[1740432698794,0.211804,94427.0,94407.0,0.166477]
[1740432699010,0.211804,94427.0,94407.0,0.173477]
[1740432699180,0.158871,94416.0,94407.0,0.007592]
[1740432699313,0.158869,94418.0,94411.0,0.007]
[1740432699515,0.158869,94418.0,94408.0,0.158884]
[1740432699761,0.15887,94417.0,94411.0,0.007]
[1740432700335,0.18385589,94417.0,94411.0,0.007]
[1740432700881,0.02498689,94417.0,94411.0,0.007]
[1740432701082,0.158867,94419.0,94409.0,0.158882]
[1740432701275,0.211818,94421.0,94411.0,0.007]
[1740432701586,0.211806,94426.0,94414.0,0.000592]
[1740432701787,0.00810218,94466.0,94411.0,0.172879]
[1740432701788,0.15,94453.0,94426.0,0.000592]
[1740432702013,0.13305038,94452.0,94427.0,0.000592]
[1740432702211,0.15884,94435.0,94427.0,0.000592]
[1740432702418,0.15,94450.0,94415.0,0.10264569]
[1740432702419,0.158828,94442.0,94432.0,0.158843]
[1740432702669,0.03031048,94453.0,94438.0,0.000592]
[1740432702865,0.211747,94452.0,94438.0,0.000592]
[1740432703072,0.15,94451.0,94438.0,0.000592]
[1740432703268,0.001,94452.0,94438.0,0.000592]
[1740432703477,0.21175,94451.0,94442.0,0.000592]
[1740432703863,0.001,94452.0,94444.0,0.000592]
[1740432704204,0.001,94452.0,94437.0,0.158834]
[1740432704205,0.001,94452.0,94445.0,0.000592]
[1740432704405,0.001,94452.0,94451.0,0.000592]
[1740432704949,0.15981,94452.0,94451.0,0.000592]
[1740432705118,0.15881,94452.0,94451.0,0.000592]
[1740432705700,0.03131306,94453.0,94451.0,0.000592]
[1740432705904,0.158808,94454.0,94451.0,0.000592]
[1740432706142,0.00012936,94454.0,94451.0,0.007592]
[1740432706488,0.15893636,94454.0,94451.0,0.007592]
[1740432706621,0.00380969,94453.0,94451.0,0.007592]
[1740432706822,0.03049751,94453.0,94451.0,0.014592]
[1740432707175,0.00408176,94452.0,94451.0,0.007592]
[1740432707394,0.00408176,94452.0,94451.0,0.013592]
[1740432707687,0.158807,94454.0,94451.0,0.006592]
[1740432707919,0.00408171,94452.0,94451.0,0.006592]
[1740432708134,0.211738,94457.0,94448.0,0.158816]
[1740432708400,0.211738,94457.0,94451.0,0.007]
[1740432708401,0.158807,94455.0,94451.0,0.007]
[1740432708580,0.158808,94454.0,94451.0,0.007]
[1740432708783,0.00408186,94454.0,94451.0,0.007]
[1740432708956,0.16288886,94454.0,94451.0,0.007]
[1740432709458,0.15881,94453.0,94451.0,0.007]
[1740432709817,0.00408181,94452.0,94448.0,0.006]
[1740432709820,0.00408181,94452.0,94446.0,0.158819]
[1740432709821,0.370549,94455.0,94446.0,0.158819]
[1740432710149,0.158808,94454.0,94451.0,0.014]
[1740432710310,0.158808,94454.0,94451.0,0.007]
[1740432710683,0.158808,94454.0,94451.0,0.014]
[1740432711434,0.158808,94454.0,94451.0,0.007]
[1740432711948,0.158808,94454.0,94445.0,0.158821]
[1740432712152,0.158808,94454.0,94446.0,0.006]
[1740432712324,0.158808,94454.0,94451.0,0.007]
[1740432712524,0.211741,94455.0,94451.0,0.007]
[1740432712740,0.158807,94454.0,94451.0,0.007]
[1740432712939,0.158807,94454.0,94446.0,0.15882]
[1740432713473,0.158807,94454.0,94446.0,0.007]
[1740432713655,0.158807,94454.0,94445.0,0.165822]
[1740432713878,0.158807,94454.0,94451.0,0.007]
[1740432714087,0.2421704,94457.0,94451.0,0.007]
[1740432714088,0.0304334,94457.0,94451.0,0.007]
[1740432714533,0.211733,94459.0,94451.0,0.007]
[1740432714787,0.211734,94458.0,94451.0,0.014]
[1740432714982,0.21174,94456.0,94451.0,0.014]
[1740432715217,0.158808,94454.0,94445.0,0.158822]
[1740432715469,0.15881,94453.0,94451.0,0.007]
[1740432715669,0.16290683,94453.0,94451.0,0.007]
[1740432715802,0.16290683,94453.0,94444.0,0.00012936]
[1740432716013,0.16290683,94453.0,94451.0,0.005]
[1740432716305,0.15881,94452.0,94451.0,0.007]
[1740432716534,0.16290688,94452.0,94451.0,0.014]
[1740432716723,0.00409688,94452.0,94451.0,0.014]
[1740432717521,0.158807,94454.0,94451.0,0.007]
[1740432718023,0.00409683,94453.0,94445.0,0.001695]
[1740432718431,0.00409683,94453.0,94451.0,0.014]
[1740432718632,0.00409683,94453.0,94451.0,0.007]
[1740432718838,0.16290583,94453.0,94451.0,0.007]
[1740432719046,0.16290583,94453.0,94451.0,0.014]
[1740432719244,0.16290583,94453.0,94451.0,0.007]
[1740432719444,0.16290583,94453.0,94445.0,0.001695]
[1740432719644,0.00409683,94453.0,94451.0,0.007]
[1740432720169,0.158809,94453.0,94451.0,0.007]
[1740432720377,0.16290683,94452.0,94451.0,0.007]
[1740432720549,0.00409683,94452.0,94451.0,0.007]
[1740432720944,0.158807,94454.0,94451.0,0.007]
[1740432721111,0.00409688,94453.0,94445.0,0.008695]
[1740432721337,0.211741,94455.0,94445.0,0.008695]
[1740432721535,0.158809,94453.0,94445.0,0.008695]
[1740432721754,0.00409683,94452.0,94445.0,0.001695]
[1740432721951,0.211744,94454.0,94445.0,0.001695]
[1740432722155,0.211738,94457.0,94451.0,0.007]
[1740432722156,0.158809,94453.0,94451.0,0.007]
[1740432722350,0.158809,94453.0,94451.0,0.014]
[1740432722566,0.158809,94453.0,94451.0,0.007]
[1740432722840,0.158809,94453.0,94445.0,0.001695]
[1740432722985,0.158809,94453.0,94445.0,0.008695]
[1740432723967,0.15881,94452.0,94445.0,0.015695]
[1740432724078,0.158809,94453.0,94445.0,0.015695]
[1740432724281,0.158809,94453.0,94445.0,0.008695]
[1740432724477,0.158809,94453.0,94445.0,0.001695]
[1740432724687,0.211742,94455.0,94445.0,0.001695]
[1740432724688,0.158808,94454.0,94451.0,0.007]
[1740432724942,0.158808,94454.0,94445.0,0.008695]
[1740432725136,0.158808,94454.0,94445.0,0.015695]
[1740432725748,0.158808,94454.0,94445.0,0.008695]
[1740432726503,0.158808,94454.0,94445.0,0.001695]
[1740432726920,0.158809,94453.0,94445.0,0.001695]
[1740432727490,0.158808,94454.0,94451.0,0.007]
[1740432728108,0.158809,94453.0,94445.0,0.008695]
[1740432728316,0.03090169,94457.0,94445.0,0.008695]
[1740432728317,0.211741,94455.0,94445.0,0.008695]
[1740432728515,0.158807,94454.0,94445.0,0.008695]
[1740432728687,0.15881,94453.0,94445.0,0.008695]
[1740432728892,0.15881,94453.0,94445.0,0.001695]
[1740432729087,0.15881,94453.0,94451.0,0.007]
[1740432729632,0.24263869,94457.0,94451.0,0.007]
[1740432729959,0.158807,94454.0,94451.0,0.007]
[1740432730163,0.158809,94453.0,94451.0,0.007]
[1740432730273,0.1596565,94453.0,94451.0,0.007]
[1740432730480,0.1596565,94453.0,94450.0,0.0786]
[1740432731209,0.158812,94451.0,94450.0,0.0786]
[1740432731404,0.1596575,94453.0,94450.0,0.0786]
[1740432731608,0.0008475,94453.0,94451.0,0.007]
[1740432731990,0.15881,94452.0,94450.0,0.0856]
[1740432732182,0.15881,94452.0,94450.0,0.0786]
[1740432732327,0.158812,94451.0,94450.0,0.014]
[1740432732543,0.158822,94445.0,94444.0,3.6e-07]
[1740432732746,0.158851,94428.0,94427.0,0.0016946]
[1740432734856,0.158851,94428.0,94427.0,0.0086946]
[1740432735070,0.158851,94428.0,94427.0,0.0126946]
[1740432736677,0.16260533,94428.0,94427.0,0.0126946]
[1740432742763,0.00375433,94428.0,94427.0,0.0922946]
[1740432742972,0.00375433,94428.0,94427.0,0.1415946]
[1740432743186,0.211773,94441.0,94427.0,0.1415946]
[1740432743361,0.158838,94436.0,94428.0,0.158849]
[1740432743593,0.00375531,94435.0,94428.0,0.15885]
[1740432743765,0.00375531,94435.0,94427.0,0.3004466]
[1740432743966,0.158836,94437.0,94427.0,0.2934466]
[1740432744184,0.00375568,94436.0,94429.0,0.158847]
[1740432744324,0.158842,94433.0,94428.0,0.158851]
[1740432744534,0.211777,94439.0,94427.0,0.1335946]
[1740432744779,0.158841,94434.0,94428.0,0.159851]
[1740432744948,0.00375583,94433.0,94427.0,0.1305946]
[1740432745152,0.158839,94435.0,94430.0,0.158847]
[1740432745319,0.00375593,94434.0,94429.0,0.215797]
[1740432745527,0.158837,94437.0,94432.0,0.158844]
[1740432745882,0.00375593,94436.0,94432.0,0.158844]
[1740432746317,0.16259293,94436.0,94430.0,0.215797]
[1740432746530,0.00375593,94436.0,94435.0,0.158839]
[1740432746736,0.00375593,94436.0,94435.0,0.237339]
[1740432746926,0.001,94437.0,94436.0,0.37062]
[1740432747299,0.000849,94444.0,94436.0,0.158837]
[1740432747522,0.000849,94444.0,94440.0,0.158829]
[1740432747724,0.000849,94444.0,94440.0,0.157829]
[1740432747887,0.00375582,94443.0,94440.0,0.157829]
[1740432748095,0.00375582,94443.0,94441.0,0.158829]
[1740432748707,0.00375582,94443.0,94439.0,0.211775]
[1740432748949,0.00375582,94443.0,94441.0,0.158827]
[1740432749266,0.158819,94447.0,94441.0,0.158828]
[1740432749593,0.158816,94449.0,94443.0,0.158825]
[1740432749870,0.00350024,94446.0,94445.0,0.158822]
[1740432750117,0.158804,94456.0,94449.0,0.157814]
[1740432750330,0.00802039,94468.0,94446.0,0.1296]
[1740432750331,0.21172,94465.0,94452.0,0.15881]
[1740432750702,0.15,94463.0,94452.0,0.15881]
[1740432750942,0.211726,94462.0,94452.0,0.15881]
[1740432751324,0.158799,94459.0,94452.0,0.15881]
[1740432751784,0.00493305,94453.0,94452.0,0.008]
[1740432751970,0.0008475,94453.0,94452.0,0.008]
[1740432752180,0.00493305,94453.0,94452.0,0.008]
[1740432752621,0.00493305,94453.0,94452.0,0.16681]
[1740432753002,0.00493305,94453.0,94452.0,0.008]
[1740432753357,0.00493305,94453.0,94452.0,0.16681]
[1740432753784,0.0008475,94453.0,94452.0,0.16681]
[1740432753987,0.00493305,94453.0,94452.0,0.16681]
[1740432754213,0.0008475,94453.0,94452.0,0.16681]
[1740432754408,0.00493305,94453.0,94452.0,0.16681]
[1740432754816,0.00493305,94453.0,94452.0,0.008]
[1740432755026,0.00493305,94453.0,94452.0,0.16681]
[1740432755438,0.0008475,94453.0,94452.0,0.16681]
[1740432755820,0.00493305,94453.0,94452.0,0.16681]
[1740432757374,0.0008475,94453.0,94452.0,0.16681]
[1740432760550,0.0008475,94453.0,94452.0,0.24271]
[1740432760775,0.0008475,94453.0,94452.0,0.34535569]
[1740432762272,0.0008475,94453.0,94452.0,0.39225569]
[1740432763110,0.0008475,94453.0,94452.0,0.38425569]
[1740432763327,0.0008475,94453.0,94452.0,0.38925569]
[1740432763739,0.0008475,94453.0,94452.0,0.38525569]
[1740432763936,0.0008475,94453.0,94452.0,0.38425569]
[1740432764313,0.0008475,94453.0,94452.0,0.39125569]
[1740432765174,0.0008475,94453.0,94452.0,0.39825569]
[1740432770916,0.0008475,94453.0,94452.0,0.38827569]
[1740432771524,0.211691,94477.0,94452.0,0.38827569]
[1740432771525,0.211683,94481.0,94452.0,0.23944569]
[1740432771727,0.15890431,94473.0,94453.0,0.10264569]
[1740432772054,0.00410274,94472.0,94461.0,0.158795]
[1740432772216,0.00410274,94472.0,94453.0,0.10264569]
[1740432772415,0.00410274,94472.0,94452.0,0.1368]
[1740432772416,0.158809,94453.0,94452.0,0.1298]
[1740432772616,0.02645696,94473.0,94452.0,0.1298]
[1740432772617,0.02645696,94473.0,94452.0,0.1318]
[1740432773096,0.02645696,94473.0,94453.0,0.1041279]
[1740432773413,0.00413304,94472.0,94453.0,0.10864569]
[1740432773594,0.00413304,94472.0,94453.0,0.10764569]
[1740432773776,0.00413304,94472.0,94464.0,0.158789]
[1740432773971,0.02645696,94473.0,94465.0,0.158788]
[1740432774180,0.00413519,94471.0,94464.0,0.15879]
[1740432774357,0.00413525,94472.0,94464.0,0.15879]
[1740432774556,0.00413513,94470.0,94462.0,0.211723]
[1740432774771,0.16291419,94471.0,94461.0,0.158794]
[1740432775000,0.00413507,94469.0,94465.0,0.001]
[1740432775195,0.00413501,94468.0,94465.0,0.001]
[1740432775510,0.158779,94471.0,94465.0,0.001]
[1740432775713,0.00413495,94467.0,94465.0,0.001]
[1740432775893,0.02645696,94473.0,94466.0,0.0792]
[1740432776095,0.02645696,94473.0,94467.0,0.211712]
[1740432776293,0.02645696,94473.0,94469.0,0.158781]
[1740432776560,0.15877,94476.0,94469.0,0.158781]
[1740432776745,0.15877,94476.0,94467.0,0.211712]
[1740432776746,0.15877,94476.0,94468.0,0.158783]
[1740432776916,0.158771,94476.0,94468.0,0.158783]
[1740432777283,0.158768,94477.0,94468.0,0.158782]
[1740432777496,0.04124164,94478.0,94468.0,0.211711]
[1740432777715,0.0141601,94478.0,94477.0,0.158768]
[1740432778089,0.0141601,94478.0,94473.0,0.2614]
[1740432778090,0.0141601,94478.0,94474.0,0.211698]
[1740432778293,0.0141601,94478.0,94473.0,0.0497]
[1740432778472,0.0141601,94478.0,94477.0,0.158768]
[1740432778662,0.0141601,94478.0,94473.0,0.0497]
[1740432778873,0.0141601,94478.0,94477.0,0.003]
[1740432779261,0.0141601,94478.0,94474.0,0.211697]
[1740432779466,0.0141601,94478.0,94476.0,0.15877]
[1740432779714,0.0141601,94478.0,94474.0,0.370469]
[1740432779875,0.0141601,94478.0,94474.0,0.158772]
[1740432780319,0.0141601,94478.0,94477.0,0.006]
[1740432781563,0.0141601,94478.0,94475.0,0.158772]
[1740432781979,0.0141601,94478.0,94474.0,0.008]
[1740432782097,0.0141601,94478.0,94477.0,0.241168]
[1740432782555,0.0141601,94478.0,94477.0,0.247168]
[1740432783082,0.0141601,94478.0,94477.0,0.241168]
[1740432783449,0.0141601,94478.0,94477.0,0.250168]
[1740432784807,0.0141601,94478.0,94477.0,0.0914]
[1740432784979,0.0141601,94478.0,94477.0,0.250168]
[1740432785829,0.0141601,94478.0,94477.0,0.0914]
[1740432786010,0.0141601,94478.0,94477.0,0.250168]
[1740432786665,0.0141601,94478.0,94477.0,0.0914]
[1740432786869,0.0141601,94478.0,94477.0,0.250168]
[1740432787793,0.0141601,94478.0,94477.0,0.0914]
[1740432788294,0.0141601,94478.0,94477.0,0.250168]
[1740432789085,0.0141601,94478.0,94477.0,0.0914]
[1740432789287,0.0141601,94478.0,94477.0,0.250168]
[1740432789817,0.0141601,94478.0,94477.0,0.009]
[1740432790020,0.1729271,94478.0,94477.0,0.009]
[1740432790228,0.1737758,94478.0,94477.0,0.009]
[1740432790377,0.17792712,94478.0,94477.0,0.009]
[1740432790781,0.00415132,94478.0,94477.0,0.009]
[1740432790983,0.16291832,94478.0,94477.0,0.009]
[1740432791329,0.16257238,94478.0,94477.0,1e-08]
[1740432791535,0.26521807,94478.0,94477.0,1e-08]
[1740432791955,0.26521807,94478.0,94477.0,0.00400001]
[1740432792129,0.26521807,94478.0,94477.0,0.004]
[1740432792345,0.16257238,94478.0,94477.0,0.004]
[1740432792540,0.158773,94474.0,94473.0,0.0016974]
[1740432792922,0.00380514,94474.0,94473.0,0.0016974]
[1740432793123,0.00380514,94474.0,94473.0,0.1604724]
[1740432793328,0.158754,94486.0,94477.0,0.158767]
[1740432793530,0.15,94487.0,94473.0,0.0016974]
[1740432793735,0.158762,94481.0,94473.0,0.0016974]
[1740432794296,0.0038055,94480.0,94473.0,0.0016974]
[1740432794468,0.0038055,94480.0,94473.0,0.0046974]
[1740432794671,0.158766,94479.0,94473.0,0.0046974]
[1740432794876,0.16257144,94479.0,94473.0,0.0016974]
[1740432795106,0.00380544,94479.0,94473.0,0.0056974]
[1740432795320,0.15,94485.0,94473.0,0.0056974]
[1740432795526,0.00380538,94478.0,94473.0,0.0056974]
[1740432795728,0.211687,94480.0,94473.0,0.0016974]
[1740432795933,0.15,94485.0,94473.0,0.0066974]
[1740432796101,0.158772,94475.0,94473.0,0.0066974]
[1740432796345,0.158772,94475.0,94473.0,0.0086974]
[1740432796613,0.15,94485.0,94473.0,0.0066974]
[1740432796614,0.00380514,94474.0,94473.0,0.0066974]
[1740432796841,0.00380514,94474.0,94473.0,0.0076974]
[1740432796987,0.02710838,94485.0,94473.0,0.0076974]
[1740432797208,0.158772,94475.0,94473.0,0.0016974]
[1740432797414,0.00380574,94484.0,94473.0,0.0046974]
[1740432797633,0.00380514,94474.0,94473.0,0.0106974]
[1740432797818,0.01107149,94475.0,94473.0,0.0106974]
[1740432798064,0.00380514,94474.0,94473.0,0.0046974]
[1740432798274,0.00380514,94474.0,94473.0,0.0076974]
[1740432798625,0.01107149,94475.0,94473.0,0.0534974]
[1740432798815,0.01107149,94475.0,94474.0,0.158773]
[1740432799953,0.01107149,94475.0,94474.0,0.161773]
[1740432800565,0.01107149,94475.0,94474.0,0.168773]
[1740432803242,0.01107149,94475.0,94474.0,0.01]
[1740432804184,0.01486873,94475.0,94474.0,0.01]
[1740432804818,0.01107149,94475.0,94474.0,0.01]
[1740432805004,0.01107149,94475.0,94474.0,0.168773]
[1740432805210,0.01107149,94475.0,94474.0,0.01]
[1740432805614,0.01486937,94475.0,94474.0,0.01]
[1740432805833,0.01486937,94475.0,94474.0,0.168773]
[1740432806227,0.01107149,94475.0,94474.0,0.01]
[1740432806601,0.01486937,94475.0,94474.0,0.01]
[1740432806813,0.01486937,94475.0,94474.0,0.168773]
[1740432807010,0.01107149,94475.0,94474.0,0.168773]
[1740432807206,0.01107149,94475.0,94474.0,0.01]
[1740432808013,0.01486937,94475.0,94474.0,0.168773]
[1740432809085,0.01107149,94475.0,94474.0,0.168773]
[1740432809310,0.01486937,94475.0,94474.0,0.01]
[1740432809981,0.01107149,94475.0,94474.0,0.01]
[1740432811056,0.01107149,94475.0,94474.0,0.168773]
[1740432811796,0.01107149,94475.0,94474.0,0.01]
[1740432812589,0.01487349,94475.0,94474.0,0.01]
[1740432812939,0.01487349,94475.0,94474.0,0.168773]
[1740432813147,0.01107149,94475.0,94474.0,0.168773]
[1740432821369,0.01107149,94475.0,94474.0,0.01]
[1740432821610,0.0148721,94475.0,94474.0,0.01]
[1740432821992,0.01107149,94475.0,94474.0,0.01]
[1740432822147,0.01487216,94475.0,94474.0,0.01]
[1740432822527,0.01487216,94475.0,94474.0,0.168773]
[1740432822737,0.01107149,94475.0,94474.0,0.01]
[1740432823146,0.0008487,94477.0,94474.0,0.01]
[1740432823389,0.00380067,94476.0,94474.0,0.01]
[1740432823988,0.00380067,94476.0,94474.0,0.003]
[1740432824624,0.00380067,94476.0,94474.0,0.161773]
[1740432824924,0.00380067,94476.0,94474.0,0.003]
[1740432825226,0.00380067,94476.0,94475.0,0.158772]
[1740432826142,0.0008487,94477.0,94475.0,0.158772]
[1740432826283,0.0008487,94477.0,94476.0,0.15877]
[1740432826640,0.00465914,94477.0,94476.0,0.15877]
[1740432826840,0.0008487,94477.0,94476.0,0.15877]
[1740432827044,0.00465914,94477.0,94476.0,0.15877]
[1740432827244,0.0008487,94477.0,94476.0,0.15877]
[1740432827403,0.00465914,94477.0,94476.0,0.15877]
[1740432827601,0.0008487,94477.0,94476.0,0.15877]
[1740432827803,0.00465914,94477.0,94476.0,0.15877]
[1740432828029,0.0008487,94477.0,94476.0,0.15877]
[1740432828189,0.00465914,94477.0,94476.0,0.15877]
[1740432828393,0.0008487,94477.0,94476.0,0.15877]
[1740432828586,0.00465914,94477.0,94476.0,0.16477]
[1740432828800,0.0008487,94477.0,94476.0,0.24457]
[1740432829000,0.00465896,94477.0,94476.0,0.24457]
[1740432829248,0.0008487,94477.0,94476.0,0.34721569]
[1740432829666,0.0008487,94477.0,94476.0,0.39431569]
[1740432830103,0.0008487,94477.0,94476.0,0.39131569]
[1740432832277,0.0008487,94477.0,94476.0,0.39731569]
[1740432832851,0.0008487,94477.0,94476.0,0.39131569]
[1740432833023,0.308733,94498.0,94476.0,0.39131569]
[1740432833024,0.211641,94500.0,94477.0,0.0773]
[1740432833227,0.158732,94499.0,94491.0,0.0773]
[1740432833430,0.16255232,94499.0,94491.0,0.0773]
[1740432833724,0.03766976,94499.0,94491.0,0.236045]
[1740432834053,0.158733,94498.0,94491.0,0.0773]
[1740432834174,0.19640176,94499.0,94491.0,0.0773]
[1740432834379,0.00382914,94497.0,94491.0,0.0773]
[1740432834578,0.0038292,94498.0,94492.0,0.158743]
[1740432834796,0.00382908,94496.0,94492.0,0.158743]
[1740432834998,0.00382914,94497.0,94493.0,0.158741]
[1740432835202,0.00382902,94495.0,94491.0,0.0773]
[1740432835405,0.03384944,94499.0,94494.0,0.15874]
[1740432835621,0.158729,94501.0,94494.0,0.15874]
[1740432835815,0.00382931,94498.0,94492.0,0.211656]
[1740432836020,0.03349461,94501.0,94500.0,0.15873]
[1740432836226,0.00043111,94504.0,94501.0,0.0765]
[1740432836431,0.00043111,94504.0,94503.0,0.158725]
[1740432836702,0.03400893,94504.0,94503.0,0.158725]
[1740432837064,0.03400893,94504.0,94501.0,0.0765]
[1740432837271,0.03400893,94504.0,94501.0,0.0610145]
[1740432837742,0.00392924,94503.0,94501.0,0.0610145]
[1740432837958,0.00393715,94502.0,94501.0,0.0610145]
[1740432838182,0.00393715,94502.0,94492.0,0.002]
[1740432838183,0.158734,94498.0,94492.0,0.002]
[1740432838374,0.211633,94503.0,94483.0,0.15]
[1740432838592,0.00393785,94497.0,94490.0,0.158746]
[1740432838792,0.0008487,94498.0,94491.0,0.158743]
[1740432839008,0.0008487,94498.0,94490.0,0.158746]
[1740432839220,0.00393733,94497.0,94490.0,0.158746]
[1740432839652,0.0008487,94498.0,94493.0,0.0562]
[1740432840087,0.15874,94494.0,94493.0,0.003]
[1740432840295,0.15874,94494.0,94493.0,0.007]
[1740432840479,0.16267727,94494.0,94493.0,0.007]
[1740432840699,0.16267727,94494.0,94493.0,0.012]
[1740432840825,0.00393727,94494.0,94493.0,0.012]
[1740432841267,0.0008487,94498.0,94493.0,0.012]
[1740432841456,0.16267481,94494.0,94493.0,0.012]
[1740432841707,0.16267493,94494.0,94493.0,0.005]
[1740432841905,0.16267493,94494.0,94486.0,0.0828]
[1740432841906,0.158768,94477.0,94475.0,0.0771]
[1740432842228,0.16270287,94477.0,94475.0,0.0771]
[1740432842600,0.00393487,94477.0,94475.0,0.0771]
[1740432842974,0.158764,94480.0,94475.0,0.0771]
[1740432843213,0.00392691,94477.0,94476.0,0.0086974]
[1740432843419,0.211655,94493.0,94476.0,0.0086974]
[1740432843614,0.00392685,94477.0,94476.0,0.0086974]
[1740432843819,0.00791221,94505.0,94476.0,0.0086974]
[1740432843974,0.1595827,94498.0,94486.0,0.158752]
[1740432844201,0.00391416,94497.0,94479.0,0.211687]
[1740432844415,0.00391416,94497.0,94478.0,0.0782]
[1740432844621,0.00391416,94497.0,94484.0,0.0805]
[1740432844844,0.0008487,94498.0,94489.0,0.158747]
[1740432845043,0.0008487,94498.0,94490.0,0.158746]
[1740432845339,0.00391401,94497.0,94489.0,0.158748]
[1740432845719,0.00391401,94497.0,94480.0,0.10264569]
[1740432845924,0.00391401,94497.0,94482.0,0.0494]
[1740432846128,0.0008487,94498.0,94493.0,0.15874]
[1740432846310,0.0008487,94498.0,94494.0,0.1251]
[1740432846512,0.004007,94497.0,94494.0,0.28384]
[1740432846744,0.0008487,94498.0,94494.0,0.28384]
[1740432846945,0.0008487,94498.0,94494.0,0.1251]
[1740432847146,0.0008487,94498.0,94494.0,0.283839]
[1740432847937,0.0008487,94498.0,94495.0,0.158738]
[1740432848511,0.0008487,94498.0,94494.0,0.1251]
[1740432848921,0.0008487,94498.0,94494.0,0.283838]
[1740432849123,0.0008487,94498.0,94494.0,0.1251]
[1740432849325,0.0008487,94498.0,94495.0,0.158738]
[1740432849529,0.0008487,94498.0,94497.0,0.158735]
[1740432852155,0.0008487,94498.0,94497.0,0.162735]
[1740432854553,0.0008487,94498.0,94497.0,0.004]
[1740432858092,0.00485623,94498.0,94497.0,0.004]
[1740432858322,0.0008487,94498.0,94497.0,0.004]
[1740432860971,0.0008487,94498.0,94497.0,0.162735]
[1740432861341,0.0008487,94498.0,94497.0,0.004]
[1740432861923,0.0008487,94498.0,94494.0,0.1251]
[1740432862131,0.0008487,94498.0,94497.0,0.006]
[1740432862327,0.0008487,94498.0,94497.0,0.007]
[1740432863988,0.0008487,94498.0,94497.0,0.001]
[1740432864979,0.0008487,94498.0,94497.0,0.006]
[1740432866222,0.0008487,94498.0,94497.0,0.007697]
[1740432868846,0.00487682,94498.0,94497.0,0.007697]
[1740432869053,0.0008487,94498.0,94497.0,0.007697]
[1740432873003,0.004875,94498.0,94497.0,0.007697]
[1740432873202,0.0008487,94498.0,94497.0,0.007697]
[1740432873427,0.00487506,94498.0,94497.0,0.007697]
[1740432874570,0.0008487,94498.0,94497.0,0.007697]
[1740432874769,0.16360765,94498.0,94497.0,0.007697]
[1740432877164,0.16360765,94498.0,94497.0,0.002697]
[1740432877572,0.16360765,94498.0,94497.0,0.007697]
[1740432877726,0.16360765,94498.0,94497.0,0.006697]